bitfinex-derivatives/quotes_SOLF0:USTF0_20241216
["timestamp","ask_amount","ask_price","bid_price","bid_amount"]
[1734376610311,2.2828,218.98,218.92,2.2832]
[1734376610609,11.08958162,219.04,218.9,5.45818973]
[1734376610809,11.08958162,219.03,218.91,1.6109]
[1734376611005,3.26,219.04,218.91,1.6109]
[1734376611207,14.35050377,219.04,218.91,1.6109]
[1734376611412,2.2826,219.0,218.95,2.283]
[1734376611810,3.26,219.05,218.94,3.26]
[1734376612012,2.2823,219.02,218.94,3.26]
[1734376612614,2.2823,219.02,218.97,2.2827]
[1734376612813,2.2821,219.04,218.94,3.26]
[1734376613008,2.2821,219.04,218.99,2.2825]
[1734376613717,2.2821,219.04,219.0,2.2825]
[1734376613919,2.2821,219.04,218.95,21.06973055]
[1734376614118,2.2821,219.04,218.94,3.26]
[1734376614119,11.0830859,219.11,218.94,3.26]
[1734376614312,11.0830859,219.11,218.98,2.2826]
[1734376614517,2.2824,219.01,218.94,3.26]
[1734376614920,2.2826,219.0,218.91,1.6109]
[1734376615122,2.2826,219.0,218.92,3.26]
[1734376615423,2.2826,219.0,218.96,2.2829]
[1734376615717,14.3430859,219.07,218.92,3.26]
[1734376615922,2.2824,219.02,218.98,2.2827]
[1734376616123,2.2824,219.02,218.92,3.26]
[1734376616623,2.2824,219.02,218.97,2.2827]
[1734376616922,2.2824,219.02,218.91,1.6109]
[1734376616923,14.33889211,219.07,218.93,3.26]
[1734376617122,3.26,219.07,218.93,3.26]
[1734376617422,2.2823,219.02,218.93,3.26]
[1734376617722,3.26,219.07,218.93,3.26]
[1734376617918,2.2822,219.03,218.99,2.2825]
[1734376618226,3.26,219.07,218.93,3.26]
[1734376618421,2.2818,219.07,219.01,2.2823]
[1734376618629,3.26,219.11,219.01,2.2823]
[1734376618819,14.33416238,219.11,218.94,24.32973055]
[1734376619019,14.33416238,219.11,218.99,2.2826]
[1734376619217,14.33416238,219.11,218.94,24.32973055]
[1734376619521,3.26,219.11,218.94,24.32973055]
[1734376620318,14.33724629,219.11,218.94,24.32973055]
[1734376620722,2.2822,219.03,218.94,24.32973055]
[1734376621319,2.2821,219.05,218.94,24.32973055]
[1734376621523,3.26,219.11,218.94,24.32973055]
[1734376622323,3.26,219.11,219.02,2.2823]
[1734376622518,2.2819,219.06,219.02,2.2823]
[1734376622726,3.26,219.11,218.94,24.32973055]
[1734376622923,21.06973055,219.12,218.94,24.32973055]
[1734376623120,24.32973055,219.12,218.94,24.32973055]
[1734376623324,21.06973055,219.12,218.94,24.32973055]
[1734376623526,2.281,219.15,219.02,21.06973055]
[1734376623722,17.92886526,219.22,219.03,7.7384]
[1734376624029,2.2815,219.1,219.04,3.26]
[1734376624220,21.06973055,219.19,219.04,3.26]
[1734376624422,3.26,219.18,219.05,2.2819]
[1734376625029,3.26,219.18,219.04,5.542]
[1734376625421,14.3216432,219.18,219.04,3.26]
[1734376625621,21.06973055,219.15,219.03,4.4784]
[1734376625824,2.2823,219.02,219.01,5.39802388]
[1734376626029,21.06973055,219.07,218.91,3.0516]
[1734376626234,21.06973055,219.07,218.98,5.56676349]
[1734376626530,3.26,219.06,218.92,1.5138]
[1734376626724,21.06973055,218.99,218.94,5.43966093]
[1734376626923,21.06973055,218.99,218.82,21.42896055]
[1734376626924,24.32973055,218.99,218.82,0.35923]
[1734376627128,21.06973055,218.95,218.82,0.35923]
[1734376627331,21.06973055,218.95,218.85,5.49115938]
[1734376627626,2.2839,218.86,218.85,5.49115938]
[1734376628130,21.06973055,218.95,218.83,5.58319917]
[1734376628131,17.9281957,218.94,218.83,5.58319917]
[1734376628336,10.12125174,218.93,218.82,0.35923]
[1734376628526,2.2842,218.84,218.82,0.35923]
[1734376632130,2.2843,218.83,218.82,0.35923]
[1734376633241,24.28973055,218.87,218.72,3.22]
[1734376633532,24.28973055,218.87,218.69,4.6799]
[1734376633533,24.28973055,218.87,218.7,3.22]
[1734376633735,24.28973055,218.87,218.69,4.6799]
[1734376633736,21.06973055,218.83,218.69,4.6799]
[1734376634132,21.06973055,218.83,218.69,1.5074]
[1734376634441,2.2856,218.7,218.69,1.5074]
[1734376635038,2.2851,218.76,218.69,6.88577776]
[1734376635233,1.5257,218.86,218.69,6.88577776]
[1734376635234,3.22,218.85,218.71,21.06973055]
[1734376635639,3.22,218.85,218.72,1.5671]
[1734376636331,3.22,218.85,218.75,21.06973055]
[1734376636735,21.06973055,218.9,218.76,5.505]
[1734376636736,24.28973055,218.9,218.76,5.505]
[1734376636938,24.28973055,218.9,218.76,3.22]
[1734376637139,24.28973055,218.9,218.75,21.06973055]
[1734376637341,2.2845,218.81,218.75,21.06973055]
[1734376637543,24.28973055,218.9,218.75,21.06973055]
[1734376637945,2.284,218.86,218.74,39.91573655]
[1734376638140,3.22,218.9,218.74,39.91573655]
[1734376638347,3.22,218.9,218.74,37.63063655]
[1734376638546,2.2842,218.84,218.77,2.2849]
[1734376638944,3.22,218.93,218.78,34.41063655]
[1734376639139,3.22,218.93,218.78,36.69533655]
[1734376639140,2.2841,218.85,218.78,36.69533655]
[1734376639356,3.22,218.93,218.78,34.41063655]
[1734376639545,3.22,218.96,218.78,34.41063655]
[1734376639944,3.22,218.96,218.83,2.2842]
[1734376640150,3.22,218.96,218.84,1.6039]
[1734376640445,2.2837,218.89,218.84,3.0891]
[1734376640947,2.2837,218.89,218.84,5.3732]
[1734376641146,2.2837,218.89,218.84,3.0891]
[1734376641647,2.2835,218.9,218.84,5.3732]
[1734376641845,3.22,218.98,218.84,3.0891]
[1734376642047,34.41063655,218.97,218.84,3.0891]
[1734376642750,2.284,218.85,218.84,3.0891]
[1734376643343,2.2843,218.83,218.82,5.41416652]
[1734376645251,2.2843,218.83,218.77,4.7357]
[1734376645252,34.41063655,218.89,218.77,4.7357]
[1734376645449,34.41063655,218.89,218.77,1.5157]
[1734376646148,34.41063655,218.89,218.79,5.35999951]
[1734376647049,2.2846,218.8,218.79,5.35999951]
[1734376648055,2.2846,218.81,218.79,5.35999951]
[1734376648547,34.41063655,218.89,218.79,5.35999951]
[1734376648855,2.2844,218.82,218.79,5.35999951]
[1734376649050,3.22,218.89,218.79,5.35999951]
[1734376649249,2.2842,218.84,218.79,5.35999951]
[1734376649650,34.41063655,218.93,218.79,5.35999951]
[1734376649848,37.63063655,218.93,218.79,8.57999951]
[1734376650252,3.22,218.94,218.83,2.2842]
[1734376650553,3.22,218.94,218.79,8.57999951]
[1734376650753,3.22,218.94,218.84,2.2841]
[1734376650951,3.22,218.94,218.79,8.57999951]
[1734376651553,34.41063655,218.93,218.79,5.35999951]
[1734376652156,2.2841,218.85,218.81,2.2845]
[1734376652857,27.3,218.98,218.6,54.27513827]
[1734376653055,34.41063655,218.87,218.69,35.98903655]
[1734376653255,3.22,218.86,218.69,35.98903655]
[1734376653456,2.2848,218.78,218.7,4.6915]
[1734376654159,3.22,218.86,218.7,4.6915]
[1734376654462,2.285,218.76,218.7,6.9771]
[1734376654656,3.22,218.86,218.7,6.9771]
[1734376654851,3.22,218.86,218.7,4.6915]
[1734376655656,2.2848,218.78,218.71,2.2854]
[1734376655855,3.22,218.86,218.71,2.2854]
[1734376656155,2.285,218.77,218.7,4.6915]
[1734376656359,3.22,218.86,218.7,6.977]
[1734376656956,2.2848,218.78,218.72,2.2853]
[1734376657463,2.2849,218.77,218.72,2.2853]
[1734376658061,2.285,218.76,218.71,2.2855]
[1734376658257,21.18624999,218.85,218.7,1.4715]
[1734376658460,21.18624999,218.85,218.69,7.04272592]
[1734376658661,21.18624999,218.85,218.7,2.2856]
[1734376658962,21.18624999,218.85,218.69,7.04272592]
[1734376659160,2.2855,218.71,218.69,7.04272592]
[1734376659463,3.22,218.78,218.69,7.04272592]
[1734376659662,2.2851,218.76,218.69,9.32832592]
[1734376659859,3.22,218.78,218.69,7.04272592]
[1734376660055,3.22,218.83,218.69,7.04272592]
[1734376660360,2.2849,218.77,218.69,7.04272592]
[1734376660964,2.285,218.76,218.72,2.2853]
[1734376661159,3.22,218.84,218.69,7.04272592]
[1734376662470,2.2849,218.77,218.72,2.2853]
[1734376662660,2.2849,218.77,218.7,3.06]
[1734376662865,3.22,218.84,218.7,3.06]
[1734376663060,3.22,218.84,218.69,7.04272592]
[1734376663061,2.2846,218.8,218.69,9.32842592]
[1734376663264,21.18624999,218.81,218.69,7.04272592]
[1734376663461,21.18624999,218.77,218.69,5.46432592]
[1734376663665,3.06,218.76,218.69,5.46432592]
[1734376663966,3.06,218.78,218.69,5.46432592]
[1734376664161,21.18624999,218.81,218.69,5.46432592]
[1734376664162,24.24624999,218.81,218.71,2.2854]
[1734376664564,24.24624999,218.81,218.69,5.46432592]
[1734376664865,24.24624999,218.81,218.72,2.2854]
[1734376665058,21.18624999,218.81,218.69,5.46432592]
[1734376665263,3.06,218.82,218.69,5.46432592]
[1734376665460,21.18624999,218.89,218.7,24.24624999]
[1734376665665,3.06,218.88,218.7,24.24624999]
[1734376665960,21.18624999,218.85,218.71,1.5417]
[1734376666164,3.06,218.88,218.69,5.46432592]
[1734376666165,21.18624999,218.8,218.69,5.46432592]
[1734376666359,3.06,218.79,218.69,5.46432592]
[1734376666565,21.18624999,218.8,218.69,5.46432592]
[1734376666773,3.06,218.79,218.69,5.46432592]
[1734376667065,3.06,218.83,218.69,5.46432592]
[1734376667264,3.06,218.83,218.7,1.5011]
[1734376667465,2.2848,218.79,218.75,2.2851]
[1734376667966,3.06,218.83,218.71,1.5417]
[1734376668165,21.18624999,218.88,218.72,21.18624999]
[1734376668371,3.06,218.89,218.72,21.18624999]
[1734376668666,2.284,218.86,218.81,2.2844]
[1734376668866,2.284,218.86,218.79,3.06]
[1734376669071,11.02274189,218.91,218.79,3.06]
[1734376669262,11.02274189,218.91,218.77,1.5539]
[1734376669263,21.18624999,218.88,218.77,1.5539]
[1734376669462,3.06,218.87,218.71,4.6017]
[1734376669666,14.10803503,218.87,218.72,1.5539]
[1734376670671,6.86165496,218.86,218.72,1.5539]
[1734376670875,2.2843,218.83,218.77,2.2848]
[1734376671372,14.12637546,218.87,218.77,2.2848]
[1734376671570,14.12637546,218.87,218.72,1.5539]
[1734376671872,6.87009285,218.86,218.72,1.5539]
[1734376672067,2.2847,218.79,218.73,2.2852]
[1734376672262,11.06637546,218.86,218.73,2.2852]
[1734376672464,11.06637546,218.85,218.72,1.5539]
[1734376672665,3.06,218.87,218.75,2.285]
[1734376672867,21.01710512,218.87,218.75,2.285]
[1734376673067,17.95720401,218.86,218.72,1.5539]
[1734376673272,2.2849,218.77,218.73,2.2852]
[1734376673473,2.2849,218.77,218.68,21.18624999]
[1734376673474,21.18624999,218.74,218.41,9.49916897]
[1734376673668,21.18624999,218.74,218.57,5.53983843]
[1734376673669,3.06,218.73,218.57,5.53983843]
[1734376673865,14.13686145,218.73,218.57,7.82673843]
[1734376674067,11.07686145,218.73,218.57,26.72608842]
[1734376674368,3.06,218.72,218.58,1.5262]
[1734376674574,3.06,218.72,218.6,2.2866]
[1734376674768,3.06,218.72,218.61,1.5221]
[1734376675971,2.2858,218.69,218.61,1.5221]
[1734376676175,21.18624999,218.67,218.42,1.0]
[1734376676375,21.18624999,218.67,218.46,1.5221]
[1734376676376,21.18624999,218.62,218.46,1.5221]
[1734376676572,21.18624999,218.62,218.47,1.5228]
[1734376676773,3.06,218.61,218.47,1.5228]
[1734376677272,3.06,218.61,218.5,5.43229062]
[1734376678075,21.18624999,218.62,218.5,5.43229062]
[1734376678076,2.2868,218.59,218.5,5.43229062]
[1734376678278,3.06,218.61,218.5,5.43229062]
[1734376678479,3.06,218.63,218.5,5.43229062]
[1734376678673,2.2865,218.62,218.5,8.49229062]
[1734376679068,2.2865,218.62,218.55,2.2872]
[1734376679273,3.06,218.63,218.5,8.49229062]
[1734376679476,21.18624999,218.59,218.5,5.43229062]
[1734376679880,2.2872,218.55,218.5,5.43229062]
[1734376680176,3.06,218.57,218.5,5.43229062]
[1734376680376,21.18624999,218.59,218.5,5.43229062]
[1734376680577,3.06,218.58,218.5,5.43229062]
[1734376680773,2.2872,218.55,218.5,5.43229062]
[1734376681277,3.06,218.58,218.5,5.43229062]
[1734376681474,2.2873,218.54,218.5,5.43229062]
[1734376681976,2.2876,218.51,218.47,1.5228]
[1734376682179,3.06,218.56,218.49,5.44347222]
[1734376682369,2.2875,218.52,218.49,5.44347222]
[1734376683075,3.06,218.57,218.49,5.44347222]
[1734376683274,21.18624999,218.59,218.49,5.44347222]
[1734376683480,3.06,218.59,218.49,5.44347222]
[1734376684279,2.2874,218.53,218.49,5.44347222]
[1734376684479,24.24624999,218.59,218.49,5.44347222]
[1734376684672,24.24624999,218.59,218.47,1.5228]
[1734376684973,21.18624999,218.63,218.48,5.54094056]
[1734376685175,3.06,218.62,218.48,5.54094056]
[1734376685980,21.18624999,218.63,218.48,5.54094056]
[1734376686181,1.4863,218.66,218.5,21.18624999]
[1734376686377,3.06,218.66,218.5,21.18624999]
[1734376686581,2.2864,218.63,218.5,21.18624999]
[1734376686775,3.06,218.66,218.5,21.18624999]
[1734376687281,3.06,218.66,218.6,2.2866]
[1734376687583,0.6777,218.68,218.6,3.06]
[1734376687880,24.24624999,218.8,218.62,21.18624999]
[1734376688084,21.18624999,218.8,218.62,21.18624999]
[1734376688282,21.18624999,218.8,218.71,2.2855]
[1734376688476,21.18624999,218.8,218.7,3.06]
[1734376688878,2.2849,218.77,218.62,21.18624999]
[1734376689091,1.4564,218.82,218.66,21.18624999]
[1734376689389,0.6798,218.89,218.66,21.18624999]
[1734376689390,3.06,218.88,218.66,21.18624999]
[1734376689688,0.6798,218.89,218.7,21.18624999]
[1734376689689,21.18624999,218.87,218.7,21.18624999]
[1734376689879,21.18624999,218.87,218.46,221.90624999]
[1734376689880,2.2849,218.77,218.69,2.2856]
[1734376690081,21.18624999,218.71,218.51,21.18624999]
[1734376690284,21.18624999,218.71,218.6,5.54203286]
[1734376690582,3.06,218.7,218.6,5.54203286]
[1734376690781,3.06,218.71,218.6,5.54203286]
[1734376690987,24.24624999,218.71,218.54,3.06]
[1734376691183,21.18624999,218.67,218.53,5.58647007]
[1734376691484,21.18624999,218.71,218.53,5.58647007]
[1734376691687,2.286,218.66,218.58,2.2868]
[1734376692078,3.18,218.7,218.55,3.18]
[1734376692282,2.286,218.67,218.6,2.2866]
[1734376692484,3.18,218.7,218.55,3.18]
[1734376692786,3.18,218.7,218.6,2.2866]
[1734376692988,3.18,218.7,218.56,1.6017]
[1734376693188,3.18,218.71,218.56,1.6017]
[1734376693385,3.18,218.71,218.57,1.5263]
[1734376694379,3.18,218.71,218.57,22.71254999]
[1734376694584,3.18,218.74,218.57,22.71254999]
[1734376694884,21.18624999,218.76,218.57,22.71254999]
[1734376695085,3.18,218.75,218.57,22.71254999]
[1734376695492,2.2856,218.71,218.63,2.2863]
[1734376695790,3.18,218.75,218.57,22.71254999]
[1734376695980,21.18624999,218.72,218.57,1.5263]
[1734376696784,3.18,218.71,218.57,1.5263]
[1734376698286,21.18624999,218.68,218.53,5.58647007]
[1734376698686,2.2864,218.63,218.53,7.87377007]
[1734376698893,1.6067,218.67,218.53,7.87377007]
[1734376698894,3.18,218.62,218.53,7.87377007]
[1734376699197,3.18,218.63,218.53,7.87377007]
[1734376699395,2.2867,218.6,218.53,7.87377007]
[1734376699695,3.18,218.63,218.53,5.58647007]
[1734376699887,5.4664,218.63,218.53,5.58647007]
[1734376700093,3.18,218.63,218.56,2.2871]
[1734376700491,2.2863,218.64,218.56,2.2871]
[1734376700685,1.6067,218.67,218.57,2.287]
[1734376700888,21.18624999,218.68,218.53,7.17677007]
[1734376700889,3.18,218.66,218.53,7.17677007]
[1734376701189,2.2864,218.63,218.53,7.17677007]
[1734376701396,3.18,218.66,218.53,7.17677007]
[1734376701590,2.2869,218.58,218.53,5.58647007]
[1734376701794,3.18,218.66,218.57,2.287]
[1734376702892,3.18,218.66,218.53,7.16337007]
[1734376703093,3.18,218.66,218.57,2.2869]
[1734376703900,3.18,218.66,218.53,7.16337007]
[1734376704095,21.18624999,218.65,218.53,1.5769]
[1734376704394,21.18624999,218.65,218.5,2.2877]
[1734376704593,21.18624999,218.61,218.49,1.5382]
[1734376704790,3.18,218.6,218.49,1.5382]
[1734376705493,3.18,218.6,218.51,2.2876]
[1734376705494,2.2872,218.56,218.51,2.2876]
[1734376706091,3.18,218.6,218.51,5.58682267]
[1734376706796,2.2868,218.59,218.54,2.2872]
[1734376707394,2.2869,218.58,218.52,2.2874]
[1734376707693,2.2869,218.58,218.51,5.58682267]
[1734376707998,2.2869,218.58,218.53,2.2873]
[1734376708493,21.18624999,218.65,218.51,5.58682267]
[1734376708494,3.18,218.63,218.51,5.58682267]
[1734376708694,3.18,218.67,218.52,1.4941]
[1734376708891,3.18,218.67,218.52,3.073]
[1734376709292,2.2863,218.64,218.59,2.2867]
[1734376709797,3.18,218.67,218.52,3.073]
[1734376709998,3.18,218.67,218.59,2.2867]
[1734376710198,3.18,218.67,218.52,3.073]
[1734376711295,2.2863,218.64,218.58,2.2868]
[1734376711495,3.18,218.67,218.58,2.2868]
[1734376711794,3.18,218.67,218.52,3.073]
[1734376711988,21.18624999,218.65,218.51,5.58682267]
[1734376712499,2.2871,218.57,218.51,7.87432267]
[1734376712695,4.7456,218.64,218.51,5.58682267]
[1734376712890,3.18,218.65,218.52,4.6711]
[1734376713099,3.18,218.65,218.52,6.2564]
[1734376713299,21.18624999,218.68,218.52,6.2564]
[1734376713501,3.18,218.69,218.54,21.18624999]
[1734376713798,3.18,218.78,218.58,21.18624999]
[1734376713995,3.18,218.78,218.52,6.2564]
[1734376713996,17.70377004,218.83,218.62,21.18624999]
[1734376714299,17.70377004,218.83,218.68,2.2858]
[1734376714300,2.2851,218.75,218.68,2.2858]
[1734376714595,24.36624999,218.76,218.63,3.1164]
[1734376714801,2.2852,218.74,218.68,2.2857]
[1734376715097,2.2852,218.74,218.63,3.1164]
[1734376715500,2.2852,218.74,218.69,2.2856]
[1734376716899,2.2854,218.72,218.67,2.2858]
[1734376717298,3.18,218.77,218.65,5.46942322]
[1734376717299,21.18624999,218.76,218.65,5.46942322]
[1734376718193,21.18624999,218.8,218.65,5.46942322]
[1734376718398,21.14168579,218.79,218.65,26.65567321]
[1734376718601,2.2847,218.8,218.65,26.65567321]
[1734376718795,2.2847,218.8,218.69,21.18624999]
[1734376719000,2.2847,218.8,218.7,2.9458]
[1734376719197,11.08885263,218.82,218.7,2.9458]
[1734376719396,3.18,218.83,218.7,2.9458]
[1734376719598,21.18624999,218.88,218.73,21.18624999]
[1734376719804,14.26350481,218.87,218.74,1.5432]
[1734376720304,22.71494999,218.92,218.75,3.18]
[1734376720599,13.35814248,218.91,218.77,21.18624999]
[1734376720804,13.35814248,218.91,218.75,3.18]
[1734376720805,8.66334774,218.96,218.86,2.2839]
[1734376721000,3.12,218.96,218.86,2.2839]
[1734376721194,0.681,218.98,218.82,4.7179]
[1734376721195,3.12,218.97,218.82,4.7179]
[1734376721401,14.19356247,218.97,218.82,4.7179]
[1734376721596,0.681,218.98,218.83,1.5469]
[1734376721597,2.283,218.95,218.83,1.5469]
[1734376721800,79.90936257,219.0,218.84,1.5432]
[1734376722103,88.40769159,219.0,218.84,1.5432]
[1734376722500,2.283,218.95,218.88,2.2837]
[1734376723000,2.283,218.95,218.85,21.18624999]
[1734376723210,2.283,218.95,218.87,2.2838]
[1734376723496,2.283,218.95,218.88,3.12]
[1734376725001,79.90936257,219.0,218.88,3.12]
[1734376725002,2.2831,218.94,218.88,3.12]
[1734376726099,79.90936257,219.0,218.88,3.12]
[1734376727206,79.90936257,219.0,218.85,21.18624999]
[1734376727399,2.2839,218.87,218.84,1.5432]
[1734376727602,21.18624999,218.93,218.75,21.18624999]
[1734376727799,3.12,218.92,218.76,4.6348]
[1734376728001,3.12,218.92,218.76,6.1139]
[1734376728303,21.18624999,218.89,218.76,4.5991]
[1734376728508,21.18624999,218.89,218.77,5.45350438]
[1734376728800,1.513,218.88,218.72,3.12]
[1734376729400,1.513,218.88,218.75,5.4529059]
[1734376729803,2.2841,218.85,218.75,5.4529059]
[1734376730104,3.12,218.85,218.75,5.4529059]
[1734376730305,3.12,218.85,218.72,3.12]
[1734376730306,2.285,218.76,218.72,3.12]
[1734376730505,24.30624999,218.85,218.7,2.9699]
[1734376731409,3.12,218.85,218.72,5.39090989]
[1734376732308,3.12,218.85,218.72,7.67620989]
[1734376732309,2.2847,218.79,218.72,7.67620989]
[1734376732512,2.2847,218.79,218.72,5.39090989]
[1734376732714,3.12,218.85,218.72,5.39090989]
[1734376732903,2.2845,218.82,218.73,2.2853]
[1734376733107,3.12,218.85,218.72,5.39090989]
[1734376733708,2.2845,218.82,218.72,7.67630989]
[1734376733911,3.12,218.85,218.72,5.39090989]
[1734376734309,3.12,218.85,218.72,8.51090989]
[1734376734506,3.12,218.86,218.72,8.51090989]
[1734376734907,2.2846,218.8,218.72,8.51090989]
[1734376735406,2.2849,218.77,218.72,8.51090989]
[1734376735814,21.18624999,218.85,218.72,5.39090989]
[1734376736112,21.18624999,218.85,218.7,2.9699]
[1734376736511,21.18624999,218.85,218.71,5.50168915]
[1734376736710,3.12,218.86,218.71,5.50168915]
[1734376737109,2.2849,218.78,218.73,2.2853]
[1734376737509,3.12,218.86,218.71,26.68793914]
[1734376737711,2.2847,218.79,218.71,26.68793914]
[1734376738118,3.12,218.86,218.71,26.68793914]
[1734376738316,3.12,218.86,218.75,2.2851]
[1734376739418,22.72794999,218.93,218.75,21.18624999]
[1734376739618,22.72794999,218.93,218.73,3.12]
[1734376739619,4.6617,218.93,218.81,2.2845]
[1734376740221,2.2841,218.85,218.81,2.2844]
[1734376740416,4.6617,218.93,218.8,4.6911]
[1734376740626,21.18624999,218.97,218.8,4.6911]
[1734376740627,2.2836,218.9,218.8,4.6911]
[1734376740921,21.18624999,218.97,218.82,5.53545462]
[1734376741228,21.18624999,218.93,218.76,3.12]
[1734376741523,21.18624999,218.93,218.75,23.47134999]
[1734376741524,21.18624999,218.93,218.75,21.18624999]
[1734376741723,21.18624999,218.89,218.75,3.12]
[1734376741922,3.12,218.88,218.75,3.12]
[1734376742219,2.2844,218.82,218.75,3.12]
[1734376742445,3.12,218.88,218.76,2.285]
[1734376742933,2.2845,218.82,218.76,2.285]
[1734376743117,2.2845,218.82,218.77,2.2848]
[1734376743317,2.2841,218.85,218.75,24.30624999]
[1734376743519,21.18624999,218.89,218.75,24.30624999]
[1734376743723,21.18624999,218.89,218.75,3.12]
[1734376743918,22.70484999,218.89,218.75,3.12]
[1734376744117,0.6762,218.88,218.75,3.12]
[1734376744321,0.6762,218.88,218.72,4.5357]
[1734376745022,2.2845,218.81,218.72,4.5357]
[1734376745418,3.7962,218.88,218.72,4.5357]
[1734376745621,2.2848,218.78,218.72,4.5357]
[1734376745917,3.7962,218.88,218.72,4.5357]
[1734376746529,3.7962,218.88,218.73,2.2852]
[1734376746828,3.7962,218.88,218.72,4.5357]
[1734376747224,2.2843,218.84,218.75,21.18624999]
[1734376747623,3.12,218.91,218.75,21.18624999]
[1734376747818,2.2839,218.87,218.75,21.18624999]
[1734376748121,3.12,218.92,218.75,21.18624999]
[1734376748526,2.2839,218.87,218.75,21.18624999]
[1734376748720,3.12,218.92,218.8,2.2846]
[1734376748921,3.12,218.92,218.75,21.18624999]
[1734376749118,21.18624999,218.94,218.75,21.18624999]
[1734376749417,3.12,218.93,218.75,21.18624999]
[1734376749721,2.2841,218.85,218.79,2.2846]
[1734376749925,2.2841,218.85,218.75,21.18624999]
[1734376750122,3.12,218.92,218.79,21.18624999]
[1734376750422,3.12,218.92,218.8,3.1]
[1734376750923,3.12,218.92,218.79,21.18624999]
[1734376751120,21.18624999,218.9,218.75,21.18624999]
[1734376751319,21.18624999,218.9,218.72,4.5357]
[1734376751523,2.2851,218.75,218.72,4.5357]
[1734376751823,3.1,218.84,218.72,4.5357]
[1734376752017,3.1,218.84,218.72,2.9691]
[1734376752018,2.2852,218.74,218.72,2.9691]
[1734376752427,3.1,218.84,218.72,2.9691]
[1734376752822,2.2851,218.76,218.72,2.9691]
[1734376753622,3.1,218.84,218.73,2.2852]
[1734376754023,3.1,218.84,218.72,2.9691]
[1734376754324,3.1,218.84,218.67,21.18624999]
[1734376754518,3.1,218.84,218.37,93.47676998]
[1734376754519,21.18624999,218.82,218.64,3.1504]
[1734376754926,21.18624999,218.82,218.65,5.47186724]
[1734376755429,0.6771,218.83,218.64,3.1504]
[1734376755430,21.18624999,218.78,218.64,3.1504]
[1734376755628,3.1,218.77,218.64,3.1504]
[1734376755824,2.2857,218.7,218.64,10.81954734]
[1734376756022,3.1,218.77,218.64,8.53334734]
[1734376756223,2.2855,218.71,218.66,2.286]
[1734376756524,3.1,218.77,218.64,8.53334734]
[1734376756921,2.2857,218.7,218.64,10.81944734]
[1734376757524,2.2857,218.69,218.64,10.81944734]
[1734376757924,2.2853,218.74,218.64,6.95634734]
[1734376758125,3.1,218.77,218.63,0.59876]
[1734376758330,21.18624999,218.74,218.63,0.59876]
[1734376758531,2.2158,218.73,218.63,0.59876]
[1734376758929,3.1,218.72,218.58,3.1]
[1734376759430,3.1,218.72,218.59,5.40845155]
[1734376759629,2.2858,218.69,218.59,7.69525155]
[1734376759830,3.1,218.72,218.59,5.40845155]
[1734376760226,11.05744789,218.73,218.59,26.59470154]
[1734376760424,3.1,218.74,218.6,6.1954]
[1734376760623,11.06065099,218.77,218.65,2.2861]
[1734376760828,3.1,218.77,218.65,2.2861]
[1734376761225,3.1,218.77,218.61,1.4965]
[1734376761425,14.16246199,218.77,218.61,1.4965]
[1734376761934,2.2857,218.7,218.65,2.2861]
[1734376762127,3.1,218.77,218.65,2.2861]
[1734376762732,3.1,218.77,218.64,2.2862]
[1734376762929,3.1,218.77,218.61,1.4965]
[1734376763128,3.1,218.77,218.6,3.0954]
[1734376763129,21.18624999,218.74,218.6,3.0954]
[1734376763326,21.18624999,218.74,218.6,1.5719]
[1734376763531,2.2865,218.62,218.6,1.5719]
[1734376764026,2.2865,218.62,218.59,5.40845155]
[1734376764226,2.286,218.66,218.59,5.40845155]
[1734376764427,3.1,218.69,218.59,7.69525155]